[Event "January 9 Early 2024"]
[Site "https://www.chess.com"]
[Date "2024.01.11"]
[Round "9"]
[White "Korchmar, Vasiliy"]
[Black "Waldhausen Gordon, Frederick"]
[Result "1-0"]
[Board "9"]
[TimeControl "180+1"]
[WhiteFideId "24131750"]
[BlackFideId "2409143"]
[WhiteElo "2723"]
[BlackElo "2560"]
[WhiteTeam "RUS"]
[BlackTeam "SCO"]
[WhiteClock "0:01:45"]
[BlackClock "0:02:00"]

1. e4 {[%clk 0:03:00]}  c5 {[%clk 0:03:00]} 2. d4 {[%clk 0:03:00]}  cxd4 {[%clk 0:02:59]} 3. Qxd4 {[%clk 0:03:01]}  Nc6 {[%clk 0:02:59]} 4. Qd3 {[%clk 0:03:02]}  Nf6 {[%clk 0:02:59]} 5. Nc3 {[%clk 0:03:02]}  d6 {[%clk 0:02:58]} 6. Nf3 {[%clk 0:03:02]}  g6 {[%clk 0:02:58]} 7. Be2 {[%clk 0:03:03]}  Bg7 {[%clk 0:02:59]} 8. O-O {[%clk 0:03:03]}  O-O {[%clk 0:03:00]} 9. Nd5 {[%clk 0:03:04]}  Be6 {[%clk 0:02:57]} 10. c3 {[%clk 0:03:04]}  Rc8 {[%clk 0:02:57]} 11. Bg5 {[%clk 0:03:04]}  Nd7 {[%clk 0:02:56]} 12. Qe3 {[%clk 0:03:01]}  a6 {[%clk 0:02:53]} 13. Rfd1 {[%clk 0:02:59]}  Re8 {[%clk 0:02:50]} 14. h4 {[%clk 0:02:59]}  b5 {[%clk 0:02:47]} 15. h5 {[%clk 0:02:59]}  Nc5 {[%clk 0:02:46]} 16. h6 {[%clk 0:02:40]}  Bf8 {[%clk 0:02:43]} 17. Nd4 {[%clk 0:02:33]}  Ne5 {[%clk 0:02:40]} 18. f4 {[%clk 0:02:23]}  Nc4 {[%clk 0:02:37]} 19. Bxc4 {[%clk 0:02:23]}  bxc4 {[%clk 0:02:38]} 20. f5 {[%clk 0:02:21]}  Bxd5 {[%clk 0:02:36]} 21. exd5 {[%clk 0:02:21]}  f6 {[%clk 0:02:31]} 22. Bf4 {[%clk 0:02:11]}  g5 {[%clk 0:02:30]} 23. Bxg5 {[%clk 0:01:49]}  fxg5 {[%clk 0:02:31]} 24. Qxg5+ {[%clk 0:01:50]}  Kh8 {[%clk 0:02:29]} 25. Ne6 {[%clk 0:01:45]}  Nxe6 {[%clk 0:02:20]} 26. fxe6 {[%clk 0:01:46]}  Qb6+ {[%clk 0:02:20]} 27. Rd4 {[%clk 0:01:46]}  Qxb2 {[%clk 0:02:13]} 28. Rf1 {[%clk 0:01:46]}  Qc2 {[%clk 0:02:02]} 29. Rxf8+ {[%clk 0:01:44]}  Rxf8 {[%clk 0:02:00]} 30. Qg7# {[%clk 0:01:45]} 1-0

[Event "January 9 Early 2024"]
[Site "https://www.chess.com"]
[Date "2024.01.11"]
[Round "9"]
[White "Sanal, Vahap"]
[Black "Starozhilov, Leonid"]
[Result "1-0"]
[Board "12"]
[TimeControl "180+1"]
[WhiteFideId "6300545"]
[BlackFideId "14106752"]
[WhiteElo "2929"]
[BlackElo "2775"]
[WhiteTeam "TUR"]
[BlackTeam "UKR"]
[WhiteClock "0:01:54"]
[BlackClock "0:01:05"]

1. e4 {[%clk 0:03:00]}  g6 {[%clk 0:02:59]} 2. d4 {[%clk 0:03:00]}  Bg7 {[%clk 0:03:00]} 3. Nf3 {[%clk 0:03:01]}  d6 {[%clk 0:03:01]} 4. Bd3 {[%clk 0:03:01]}  Nf6 {[%clk 0:03:01]} 5. c3 {[%clk 0:03:01]}  O-O {[%clk 0:03:01]} 6. O-O {[%clk 0:03:02]}  Nc6 {[%clk 0:03:01]} 7. Be3 {[%clk 0:03:02]}  e5 {[%clk 0:02:59]} 8. Nbd2 {[%clk 0:03:03]}  Ng4 {[%clk 0:02:52]} 9. Bg5 {[%clk 0:03:02]}  f6 {[%clk 0:02:44]} 10. Bh4 {[%clk 0:03:02]}  g5 {[%clk 0:02:45]} 11. Bg3 {[%clk 0:03:02]}  Nh6 {[%clk 0:02:45]} 12. Re1 {[%clk 0:02:48]}  Nf7 {[%clk 0:02:43]} 13. Nf1 {[%clk 0:02:40]}  h5 {[%clk 0:02:29]} 14. h3 {[%clk 0:02:28]}  h4 {[%clk 0:02:05]} 15. Bh2 {[%clk 0:02:27]}  Ne7 {[%clk 0:02:01]} 16. Ne3 {[%clk 0:02:26]}  Be6 {[%clk 0:02:00]} 17. Nd2 {[%clk 0:02:19]}  Qe8 {[%clk 0:01:47]} 18. Nf5 {[%clk 0:02:13]}  Nh6 {[%clk 0:01:34]} 19. Qf3 {[%clk 0:02:05]}  b6 {[%clk 0:01:20]} 20. Bc4 {[%clk 0:01:55]}  Nhxf5 {[%clk 0:01:05]} 21. Bxe6+ {[%clk 0:01:54]} 1-0

[Event "January 9 Early 2024"]
[Site "https://www.chess.com"]
[Date "2024.01.11"]
[Round "9"]
[White "Reprintsev, Alexander"]
[Black "Antunez Soler, Luis"]
[Result "0-1"]
[Board "15"]
[TimeControl "180+1"]
[WhiteFideId "14100541"]
[BlackFideId "3513335"]
[WhiteElo "2450"]
[BlackElo "2598"]
[WhiteTeam "UKR"]
[BlackTeam "CUB"]
[WhiteClock "0:01:27"]
[BlackClock "0:01:40"]

1. e4 {[%clk 0:03:00]}  e6 {[%clk 0:03:00]} 2. d4 {[%clk 0:03:00]}  d5 {[%clk 0:03:00]} 3. Nc3 {[%clk 0:03:00]}  Nf6 {[%clk 0:03:00]} 4. Bg5 {[%clk 0:02:58]}  Be7 {[%clk 0:03:00]} 5. e5 {[%clk 0:02:57]}  Nfd7 {[%clk 0:03:00]} 6. h4 {[%clk 0:02:57]}  Nc6 {[%clk 0:03:00]} 7. Qg4 {[%clk 0:02:52]}  f6 {[%clk 0:02:59]} 8. exf6 {[%clk 0:02:50]}  Nxf6 {[%clk 0:03:00]} 9. Bxf6 {[%clk 0:02:38]}  Bxf6 {[%clk 0:03:01]} 10. Bb5 {[%clk 0:02:37]}  O-O {[%clk 0:03:00]} 11. Bxc6 {[%clk 0:02:35]}  bxc6 {[%clk 0:03:01]} 12. Qf4 {[%clk 0:02:18]}  e5 {[%clk 0:02:59]} 13. dxe5 {[%clk 0:02:17]}  Bxe5 {[%clk 0:02:58]} 14. Qd2 {[%clk 0:02:12]}  Rb8 {[%clk 0:02:33]} 15. Nd1 {[%clk 0:01:50]}  Qf6 {[%clk 0:02:24]} 16. Nf3 {[%clk 0:01:48]}  Bf4 {[%clk 0:02:17]} 17. Qc3 {[%clk 0:01:42]}  Re8+ {[%clk 0:02:14]} 18. Kf1 {[%clk 0:01:41]}  Ba6+ {[%clk 0:02:14]} 19. Kg1 {[%clk 0:01:39]}  d4 {[%clk 0:01:48]} 20. Qa3 {[%clk 0:01:31]}  Be2 {[%clk 0:01:48]} 21. g3 {[%clk 0:01:27]}  Bd6 {[%clk 0:01:40]} 0-1

[Event "January 9 Early 2024"]
[Site "https://www.chess.com"]
[Date "2024.01.11"]
[Round "9"]
[White "Zhukov, Maksim"]
[Black "de Lisle, Sarah"]
[Result "1-0"]
[Board "18"]
[TimeControl "180+1"]
[WhiteFideId "34181790"]
[BlackFideId "402605"]
[WhiteElo "2313"]
[BlackElo "1948"]
[WhiteTeam "RUS"]
[BlackTeam "ENG"]
[WhiteClock "0:02:10"]
[BlackClock "0:00:49"]

1. e4 {[%clk 0:03:00]}  e5 {[%clk 0:02:59]} 2. Nf3 {[%clk 0:03:00]}  Nc6 {[%clk 0:02:58]} 3. d4 {[%clk 0:03:00]}  exd4 {[%clk 0:02:58]} 4. Bc4 {[%clk 0:03:01]}  Be7 {[%clk 0:02:57]} 5. c3 {[%clk 0:02:58]}  d6 {[%clk 0:02:54]} 6. Qb3 {[%clk 0:02:55]}  Na5 {[%clk 0:02:45]} 7. Bxf7+ {[%clk 0:02:54]}  Kf8 {[%clk 0:02:44]} 8. Qa4 {[%clk 0:02:51]}  Kxf7 {[%clk 0:02:35]} 9. Qxa5 {[%clk 0:02:49]}  dxc3 {[%clk 0:02:28]} 10. Nxc3 {[%clk 0:02:48]}  Be6 {[%clk 0:02:10]} 11. Ng5+ {[%clk 0:02:42]}  Bxg5 {[%clk 0:02:04]} 12. Bxg5 {[%clk 0:02:43]}  Qd7 {[%clk 0:02:03]} 13. O-O {[%clk 0:02:42]}  h6 {[%clk 0:02:01]} 14. Be3 {[%clk 0:02:40]}  Ne7 {[%clk 0:02:00]} 15. f4 {[%clk 0:02:40]}  Bc4 {[%clk 0:01:52]} 16. Rf3 {[%clk 0:02:32]}  b6 {[%clk 0:01:47]} 17. Qh5+ {[%clk 0:02:27]}  g6 {[%clk 0:01:44]} 18. Qh4 {[%clk 0:02:27]}  Raf8 {[%clk 0:01:15]} 19. Bd4 {[%clk 0:02:24]}  Rh7 {[%clk 0:01:11]} 20. f5 {[%clk 0:02:19]}  g5 {[%clk 0:01:06]} 21. Qh5+ {[%clk 0:02:18]}  Kg8 {[%clk 0:01:04]} 22. f6 {[%clk 0:02:15]}  Nc8 {[%clk 0:00:55]} 23. Qg6+ {[%clk 0:02:14]}  Kh8 {[%clk 0:00:49]} 24. f7+ {[%clk 0:02:13]}  Rg7 {[%clk 0:00:49]} 25. Qxh6# {[%clk 0:02:10]} 1-0

[Event "January 9 Early 2024"]
[Site "https://www.chess.com"]
[Date "2024.01.11"]
[Round "9"]
[White "Skurikhin, Dmitrij"]
[Black "Shevchuk, Olexandr"]
[Result "1/2-1/2"]
[Board "19"]
[TimeControl "180+1"]
[WhiteFideId "4161297"]
[BlackFideId "14113775"]
[WhiteElo "2223"]
[BlackElo "2506"]
[WhiteTeam "RUS"]
[BlackTeam "UKR"]
[WhiteClock "0:00:58"]
[BlackClock "0:02:02"]

1. d4 {[%clk 0:02:06]}  e6 {[%clk 0:02:58]} 2. Nf3 {[%clk 0:02:05]}  c5 {[%clk 0:02:58]} 3. c4 {[%clk 0:02:06]}  cxd4 {[%clk 0:02:57]} 4. Nxd4 {[%clk 0:02:07]}  Nf6 {[%clk 0:02:57]} 5. Nc3 {[%clk 0:02:06]}  d5 {[%clk 0:02:57]} 6. cxd5 {[%clk 0:02:06]}  Nxd5 {[%clk 0:02:58]} 7. g3 {[%clk 0:02:05]}  Nxc3 {[%clk 0:02:53]} 8. bxc3 {[%clk 0:02:05]}  Bd7 {[%clk 0:02:52]} 9. Bg2 {[%clk 0:02:04]}  Nc6 {[%clk 0:02:52]} 10. O-O {[%clk 0:02:03]}  Be7 {[%clk 0:02:52]} 11. Rb1 {[%clk 0:02:02]}  Nxd4 {[%clk 0:02:48]} 12. cxd4 {[%clk 0:01:59]}  Bc6 {[%clk 0:02:48]} 13. Bxc6+ {[%clk 0:01:58]}  bxc6 {[%clk 0:02:49]} 14. Qc2 {[%clk 0:01:50]}  O-O {[%clk 0:02:43]} 15. Qxc6 {[%clk 0:01:48]}  Qxd4 {[%clk 0:02:43]} 16. Bb2 {[%clk 0:01:48]}  Qg4 {[%clk 0:02:39]} 17. Qf3 {[%clk 0:01:11]}  Qxf3 {[%clk 0:02:23]} 18. exf3 {[%clk 0:01:12]}  Rfd8 {[%clk 0:02:23]} 19. Rfd1 {[%clk 0:01:11]}  Rab8 {[%clk 0:02:22]} 20. Be5 {[%clk 0:01:07]}  Rxb1 {[%clk 0:02:21]} 21. Rxb1 {[%clk 0:01:08]}  f6 {[%clk 0:02:14]} 22. Bf4 {[%clk 0:01:02]}  Bc5 {[%clk 0:02:09]} 23. Be3 {[%clk 0:01:01]}  Bxe3 {[%clk 0:02:08]} 24. fxe3 {[%clk 0:01:02]}  Rd2 {[%clk 0:02:06]} 25. Rb8+ {[%clk 0:01:01]}  Kf7 {[%clk 0:02:07]} 26. Rb7+ {[%clk 0:01:02]}  Kg6 {[%clk 0:02:07]} 27. Rxa7 {[%clk 0:01:02]}  h5 {[%clk 0:02:07]} 28. h4 {[%clk 0:00:59]}  Rd3 {[%clk 0:02:05]} 29. Kf2 {[%clk 0:00:58]}  Rd2+ {[%clk 0:02:06]} 30. Kf1 {[%clk 0:00:58]}  e5 {[%clk 0:02:04]} 31. e4 {[%clk 0:00:58]}  Rb2 {[%clk 0:02:01]} 32. Kg1 {[%clk 0:00:57]}  Rb1+ {[%clk 0:02:00]} 33. Kg2 {[%clk 0:00:57]}  Rb2+ {[%clk 0:02:01]} 34. Kg1 {[%clk 0:00:58]}  Rb1+ {[%clk 0:02:01]} 35. Kg2 {[%clk 0:00:58]}  Rb2+ {[%clk 0:02:02]} 36. Kg1 {[%clk 0:00:58]} 1/2-1/2

[Event "January 9 Early 2024"]
[Site "https://www.chess.com"]
[Date "2024.01.11"]
[Round "9"]
[White "Horak, Martin"]
[Black "De Souza, Cristiano Gomes"]
[Result "1-0"]
[Board "20"]
[TimeControl "180+1"]
[WhiteFideId "367095"]
[BlackFideId "2151758"]
[WhiteElo "2524"]
[BlackElo "2279"]
[WhiteTeam "CZE"]
[BlackTeam "BRA"]
[WhiteClock "0:01:29"]
[BlackClock "0:01:48"]

1. e4 {[%clk 0:03:00]}  c5 {[%clk 0:02:57]} 2. Nf3 {[%clk 0:02:52]}  d6 {[%clk 0:02:56]} 3. d4 {[%clk 0:02:52]}  cxd4 {[%clk 0:02:57]} 4. Qxd4 {[%clk 0:02:53]}  Nf6 {[%clk 0:02:56]} 5. Be2 {[%clk 0:02:53]}  Nc6 {[%clk 0:02:55]} 6. Qe3 {[%clk 0:02:53]}  g6 {[%clk 0:02:53]} 7. h3 {[%clk 0:02:53]}  Bg7 {[%clk 0:02:53]} 8. O-O {[%clk 0:02:54]}  O-O {[%clk 0:02:53]} 9. Rd1 {[%clk 0:02:55]}  Bd7 {[%clk 0:02:52]} 10. c4 {[%clk 0:02:55]}  a6 {[%clk 0:02:52]} 11. Nc3 {[%clk 0:02:54]}  Rc8 {[%clk 0:02:50]} 12. b3 {[%clk 0:02:52]}  Re8 {[%clk 0:02:45]} 13. Bb2 {[%clk 0:02:50]}  Qc7 {[%clk 0:02:43]} 14. Rac1 {[%clk 0:02:50]}  e6 {[%clk 0:02:41]} 15. Qd2 {[%clk 0:02:40]}  h5 {[%clk 0:02:34]} 16. Qxd6 {[%clk 0:02:34]}  Qxd6 {[%clk 0:02:33]} 17. Rxd6 {[%clk 0:02:35]}  Bf8 {[%clk 0:02:34]} 18. Rdd1 {[%clk 0:02:26]}  Bh6 {[%clk 0:02:31]} 19. e5 {[%clk 0:02:17]}  Bxc1 {[%clk 0:02:23]} 20. Bxc1 {[%clk 0:02:18]}  Nxe5 {[%clk 0:02:16]} 21. Nxe5 {[%clk 0:02:19]}  Bc6 {[%clk 0:02:16]} 22. Nxc6 {[%clk 0:02:12]}  Rxc6 {[%clk 0:02:16]} 23. Bf3 {[%clk 0:02:07]}  Rc7 {[%clk 0:02:15]} 24. Bg5 {[%clk 0:02:03]}  Nh7 {[%clk 0:02:11]} 25. Bf4 {[%clk 0:02:03]}  Rce7 {[%clk 0:02:09]} 26. Rd6 {[%clk 0:01:56]}  e5 {[%clk 0:02:08]} 27. Be3 {[%clk 0:01:57]}  e4 {[%clk 0:02:06]} 28. Nxe4 {[%clk 0:01:48]}  Rxe4 {[%clk 0:02:04]} 29. Bxe4 {[%clk 0:01:49]}  Rxe4 {[%clk 0:02:04]} 30. Rd7 {[%clk 0:01:39]}  b5 {[%clk 0:02:03]} 31. c5 {[%clk 0:01:38]}  Re6 {[%clk 0:02:01]} 32. Rb7 {[%clk 0:01:30]}  Kg7 {[%clk 0:01:54]} 33. Rb6 {[%clk 0:01:28]}  Rxb6 {[%clk 0:01:51]} 34. cxb6 {[%clk 0:01:29]}  Nf8 {[%clk 0:01:49]} 35. b7 {[%clk 0:01:29]}  Nd7 {[%clk 0:01:48]} 36. Ba7 {[%clk 0:01:29]} 1-0

[Event "January 9 Early 2024"]
[Site "https://www.chess.com"]
[Date "2024.01.11"]
[Round "9"]
[White "Matinian, Nikita"]
[Black "Belov, Alexei"]
[Result "1-0"]
[Board "21"]
[TimeControl "180+1"]
[WhiteFideId "24129100"]
[BlackFideId "4128206"]
[WhiteElo "2726"]
[BlackElo "2564"]
[WhiteTeam "FID"]
[BlackTeam "RUS"]
[WhiteClock "0:01:27"]
[BlackClock "0:01:09"]

1. e4 {[%clk 0:03:00]}  e6 {[%clk 0:02:59]} 2. d4 {[%clk 0:03:00]}  d5 {[%clk 0:02:52]} 3. Nc3 {[%clk 0:03:00]}  Nf6 {[%clk 0:02:52]} 4. Bg5 {[%clk 0:03:00]}  dxe4 {[%clk 0:02:51]} 5. Nxe4 {[%clk 0:03:01]}  Be7 {[%clk 0:02:51]} 6. Nxf6+ {[%clk 0:03:01]}  Bxf6 {[%clk 0:02:52]} 7. Bxf6 {[%clk 0:03:00]}  Qxf6 {[%clk 0:02:53]} 8. Nf3 {[%clk 0:03:01]}  O-O {[%clk 0:02:53]} 9. Bd3 {[%clk 0:03:00]}  c5 {[%clk 0:02:49]} 10. Qe2 {[%clk 0:02:59]}  cxd4 {[%clk 0:02:46]} 11. Qe4 {[%clk 0:02:59]}  Qh6 {[%clk 0:02:35]} 12. h4 {[%clk 0:02:56]}  Nc6 {[%clk 0:02:33]} 13. Ng5 {[%clk 0:02:55]}  f5 {[%clk 0:02:29]} 14. Qe2 {[%clk 0:02:53]}  Qf6 {[%clk 0:02:23]} 15. Bc4 {[%clk 0:02:44]}  Kh8 {[%clk 0:02:12]} 16. O-O-O {[%clk 0:02:36]}  e5 {[%clk 0:02:11]} 17. Qh5 {[%clk 0:02:17]}  h6 {[%clk 0:02:10]} 18. f4 {[%clk 0:01:58]}  exf4 {[%clk 0:01:55]} 19. Rde1 {[%clk 0:01:56]}  Bd7 {[%clk 0:01:47]} 20. Bf7 {[%clk 0:01:30]}  Ne5 {[%clk 0:01:38]} 21. Rxe5 {[%clk 0:01:30]}  Qxe5 {[%clk 0:01:37]} 22. Qg6 {[%clk 0:01:29]}  Qe3+ {[%clk 0:01:09]} 23. Kb1 {[%clk 0:01:27]} 1-0

[Event "January 9 Early 2024"]
[Site "https://www.chess.com"]
[Date "2024.01.11"]
[Round "9"]
[White "Gabrielian, Artur"]
[Black "Volkov, Maksim"]
[Result "1-0"]
[Board "23"]
[TimeControl "180+1"]
[WhiteFideId "4131002"]
[BlackFideId "54123070"]
[WhiteElo "2803"]
[BlackElo "2657"]
[WhiteTeam "RUS"]
[BlackTeam "RUS"]
[WhiteClock "0:01:41"]
[BlackClock "0:00:55"]

1. e4 {[%clk 0:03:00]}  c5 {[%clk 0:02:58]} 2. Nf3 {[%clk 0:03:00]}  d6 {[%clk 0:02:57]} 3. d4 {[%clk 0:03:01]}  cxd4 {[%clk 0:02:58]} 4. Nxd4 {[%clk 0:03:01]}  Nf6 {[%clk 0:02:58]} 5. Nc3 {[%clk 0:03:01]}  a6 {[%clk 0:02:59]} 6. Bc4 {[%clk 0:03:02]}  e6 {[%clk 0:02:58]} 7. Be3 {[%clk 0:03:01]}  b5 {[%clk 0:02:53]} 8. Bb3 {[%clk 0:03:01]}  Be7 {[%clk 0:02:53]} 9. Qe2 {[%clk 0:02:57]}  Bb7 {[%clk 0:02:52]} 10. f3 {[%clk 0:02:57]}  Nc6 {[%clk 0:02:50]} 11. O-O-O {[%clk 0:02:54]}  Na5 {[%clk 0:02:37]} 12. Bxe6 {[%clk 0:02:49]}  fxe6 {[%clk 0:02:29]} 13. Nxe6 {[%clk 0:02:50]}  Qc8 {[%clk 0:02:23]} 14. Nxg7+ {[%clk 0:02:49]}  Kf7 {[%clk 0:02:22]} 15. Nf5 {[%clk 0:02:50]}  Nc4 {[%clk 0:02:22]} 16. Bd4 {[%clk 0:02:43]}  Re8 {[%clk 0:02:05]} 17. Qf2 {[%clk 0:02:36]}  Ne5 {[%clk 0:01:39]} 18. Qh4 {[%clk 0:02:16]}  Ng6 {[%clk 0:01:30]} 19. Qh6 {[%clk 0:02:15]}  Bf8 {[%clk 0:01:30]} 20. Qg5 {[%clk 0:02:15]}  Ng8 {[%clk 0:01:15]} 21. h4 {[%clk 0:02:02]}  h6 {[%clk 0:01:15]} 22. Qg3 {[%clk 0:02:00]}  Ne5 {[%clk 0:01:15]} 23. h5 {[%clk 0:01:54]}  Qe6 {[%clk 0:01:14]} 24. Bxe5 {[%clk 0:01:48]}  dxe5 {[%clk 0:01:13]} 25. Rd7+ {[%clk 0:01:45]}  Re7 {[%clk 0:00:55]} 26. Nd6+ {[%clk 0:01:41]} 1-0

[Event "January 9 Early 2024"]
[Site "https://www.chess.com"]
[Date "2024.01.11"]
[Round "9"]
[White "Olenik Campa, Rudi"]
[Black "Osinovsky, Stepan"]
[Result "1-0"]
[Board "24"]
[TimeControl "180+1"]
[WhiteFideId "14633264"]
[BlackFideId "4157354"]
[WhiteElo "2563"]
[BlackElo "2418"]
[WhiteTeam "SLO"]
[BlackTeam "RUS"]
[WhiteClock "0:02:09"]
[BlackClock "0:00:10"]

1. e4 {[%clk 0:03:00]}  e5 {[%clk 0:02:59]} 2. Nf3 {[%clk 0:02:57]}  Nc6 {[%clk 0:02:59]} 3. Bc4 {[%clk 0:02:57]}  Nf6 {[%clk 0:02:59]} 4. Qe2 {[%clk 0:02:57]}  Bc5 {[%clk 0:02:43]} 5. Ng5 {[%clk 0:02:57]}  O-O {[%clk 0:02:33]} 6. Nxf7 {[%clk 0:02:56]}  Rxf7 {[%clk 0:02:29]} 7. Bxf7+ {[%clk 0:02:55]}  Kxf7 {[%clk 0:02:26]} 8. Qc4+ {[%clk 0:02:55]}  d5 {[%clk 0:02:25]} 9. Qxc5 {[%clk 0:02:56]}  Nxe4 {[%clk 0:02:24]} 10. Qe3 {[%clk 0:02:55]}  Nd4 {[%clk 0:01:59]} 11. Na3 {[%clk 0:02:51]}  Nf5 {[%clk 0:01:32]} 12. Qe2 {[%clk 0:02:51]}  Qh4 {[%clk 0:01:25]} 13. d3 {[%clk 0:02:43]}  Nd4 {[%clk 0:01:09]} 14. Qe3 {[%clk 0:02:42]}  Nf5 {[%clk 0:01:00]} 15. Qf3 {[%clk 0:02:41]}  Nf6 {[%clk 0:01:00]} 16. O-O {[%clk 0:02:39]}  Bd7 {[%clk 0:00:40]} 17. c3 {[%clk 0:02:39]}  Kg8 {[%clk 0:00:17]} 18. h3 {[%clk 0:02:37]}  Rf8 {[%clk 0:00:16]} 19. Re1 {[%clk 0:02:26]}  Bc6 {[%clk 0:00:11]} 20. Bd2 {[%clk 0:02:09]}  d4 {[%clk 0:00:10]} 21. Qxf5 {[%clk 0:02:09]} 1-0

[Event "January 9 Early 2024"]
[Site "https://www.chess.com"]
[Date "2024.01.11"]
[Round "9"]
[White "Navara, David"]
[Black "Grischuk, Alexander"]
[Result "1/2-1/2"]
[Board "25"]
[TimeControl "180+1"]
[WhiteFideId "309095"]
[BlackFideId "4126025"]
[WhiteElo "3019"]
[BlackElo "3073"]
[WhiteTeam "CZE"]
[BlackTeam "RUS"]
[WhiteClock "0:01:39"]
[BlackClock "0:01:05"]

1. d4 {[%clk 0:03:00]}  d5 {[%clk 0:02:57]} 2. c4 {[%clk 0:03:01]}  c6 {[%clk 0:02:58]} 3. Nc3 {[%clk 0:03:00]}  Nf6 {[%clk 0:02:57]} 4. e3 {[%clk 0:03:00]}  e6 {[%clk 0:02:58]} 5. Nf3 {[%clk 0:03:01]}  Nbd7 {[%clk 0:02:57]} 6. Qc2 {[%clk 0:03:01]}  Bd6 {[%clk 0:02:57]} 7. b3 {[%clk 0:03:00]}  O-O {[%clk 0:02:56]} 8. Be2 {[%clk 0:03:01]}  e5 {[%clk 0:02:45]} 9. cxd5 {[%clk 0:03:00]}  Nxd5 {[%clk 0:02:45]} 10. Nxd5 {[%clk 0:02:58]}  cxd5 {[%clk 0:02:45]} 11. dxe5 {[%clk 0:02:58]}  Nxe5 {[%clk 0:02:46]} 12. Bb2 {[%clk 0:02:51]}  Bb4+ {[%clk 0:02:46]} 13. Kf1 {[%clk 0:02:40]}  Nxf3 {[%clk 0:02:46]} 14. Bxf3 {[%clk 0:02:41]}  Be6 {[%clk 0:02:44]} 15. Qd3 {[%clk 0:02:33]}  Be7 {[%clk 0:02:43]} 16. h4 {[%clk 0:02:25]}  Bf6 {[%clk 0:02:41]} 17. Bd4 {[%clk 0:02:26]}  Rc8 {[%clk 0:02:36]} 18. g3 {[%clk 0:02:26]}  Bxd4 {[%clk 0:01:38]} 19. Qxd4 {[%clk 0:02:27]}  Qf6 {[%clk 0:01:38]} 20. Qxf6 {[%clk 0:02:22]}  gxf6 {[%clk 0:01:39]} 21. Kg2 {[%clk 0:02:20]}  Rc2 {[%clk 0:01:39]} 22. Rhd1 {[%clk 0:02:19]}  Rfc8 {[%clk 0:01:30]} 23. Bxd5 {[%clk 0:02:17]}  Bxd5+ {[%clk 0:01:31]} 24. Rxd5 {[%clk 0:02:18]}  Rb2 {[%clk 0:01:31]} 25. Rd7 {[%clk 0:02:13]}  Rcc2 {[%clk 0:01:28]} 26. Rf1 {[%clk 0:02:14]}  Rxa2 {[%clk 0:01:23]} 27. Rxb7 {[%clk 0:02:14]}  a5 {[%clk 0:01:19]} 28. g4 {[%clk 0:02:09]}  h6 {[%clk 0:01:17]} 29. Rb5 {[%clk 0:02:07]}  Kg7 {[%clk 0:01:14]} 30. Kg3 {[%clk 0:02:07]}  Rcb2 {[%clk 0:01:11]} 31. f3 {[%clk 0:02:05]}  Ra3 {[%clk 0:01:06]} 32. g5 {[%clk 0:01:43]}  hxg5 {[%clk 0:01:05]} 33. hxg5 {[%clk 0:01:44]}  Rbxb3 {[%clk 0:01:03]} 34. gxf6+ {[%clk 0:01:38]}  Kxf6 {[%clk 0:01:04]} 35. Rxb3 {[%clk 0:01:39]}  Rxb3 {[%clk 0:01:05]} 36. Ra1 {[%clk 0:01:39]}  Rxe3 {[%clk 0:01:05]} 37. Rxa5 {[%clk 0:01:39]} 1/2-1/2

[Event "January 9 Early 2024"]
[Site "https://www.chess.com"]
[Date "2024.01.11"]
[Round "9"]
[White "Chan, Wei Xuan Timothy"]
[Black "Lysyj, Igor"]
[Result "0-1"]
[Board "31"]
[TimeControl "180+1"]
[WhiteFideId "5802032"]
[BlackFideId "4150120"]
[WhiteElo "2716"]
[BlackElo "2858"]
[WhiteTeam "SGP"]
[BlackTeam "FID"]
[WhiteClock "0:00:28"]
[BlackClock "0:01:36"]

1. e4 {[%clk 0:03:00]}  e5 {[%clk 0:02:59]} 2. Nf3 {[%clk 0:03:00]}  Nc6 {[%clk 0:02:59]} 3. d4 {[%clk 0:03:00]}  exd4 {[%clk 0:02:58]} 4. Bc4 {[%clk 0:03:00]}  Bc5 {[%clk 0:02:58]} 5. O-O {[%clk 0:03:00]}  d6 {[%clk 0:02:56]} 6. c3 {[%clk 0:03:00]}  Bg4 {[%clk 0:02:55]} 7. h3 {[%clk 0:02:58]}  Bxf3 {[%clk 0:02:54]} 8. Qxf3 {[%clk 0:02:59]}  Nf6 {[%clk 0:02:51]} 9. Bg5 {[%clk 0:02:56]}  O-O {[%clk 0:02:48]} 10. cxd4 {[%clk 0:02:51]}  Bxd4 {[%clk 0:02:45]} 11. Nc3 {[%clk 0:02:48]}  Ne5 {[%clk 0:02:44]} 12. Qe2 {[%clk 0:02:47]}  Bxc3 {[%clk 0:02:35]} 13. bxc3 {[%clk 0:02:46]}  Nxc4 {[%clk 0:02:34]} 14. Qxc4 {[%clk 0:02:47]}  c6 {[%clk 0:02:28]} 15. f4 {[%clk 0:02:09]}  d5 {[%clk 0:02:21]} 16. Qb4 {[%clk 0:01:26]}  dxe4 {[%clk 0:02:07]} 17. Qxb7 {[%clk 0:01:09]}  Qb6+ {[%clk 0:02:06]} 18. Qxb6 {[%clk 0:01:09]}  axb6 {[%clk 0:02:06]} 19. Bxf6 {[%clk 0:01:01]}  gxf6 {[%clk 0:02:06]} 20. f5 {[%clk 0:01:02]}  Rfe8 {[%clk 0:02:02]} 21. Rf4 {[%clk 0:00:47]}  Re5 {[%clk 0:01:58]} 22. Kf2 {[%clk 0:00:43]}  Ra3 {[%clk 0:01:52]} 23. c4 {[%clk 0:00:33]}  Rc3 {[%clk 0:01:38]} 24. Rb1 {[%clk 0:00:28]}  Rxc4 {[%clk 0:01:37]} 25. Rxb6 {[%clk 0:00:28]}  e3+ {[%clk 0:01:36]} 0-1

[Event "January 9 Early 2024"]
[Site "https://www.chess.com"]
[Date "2024.01.11"]
[Round "9"]
[White "Tarhan, Adar"]
[Black "Srdanovic, Jovana"]
[Result "1-0"]
[Board "32"]
[TimeControl "180+1"]
[WhiteFideId "34544712"]
[BlackFideId "954810"]
[WhiteElo "2693"]
[BlackElo "2559"]
[WhiteTeam "TUR"]
[BlackTeam "SRB"]
[WhiteClock "0:01:28"]
[BlackClock "0:00:46"]

1. e4 {[%clk 0:03:00]}  c5 {[%clk 0:03:00]} 2. Nf3 {[%clk 0:02:54]}  Nf6 {[%clk 0:03:00]} 3. e5 {[%clk 0:02:54]}  Nd5 {[%clk 0:02:59]} 4. Nc3 {[%clk 0:02:50]}  Nxc3 {[%clk 0:03:00]} 5. dxc3 {[%clk 0:02:44]}  Nc6 {[%clk 0:03:00]} 6. Bc4 {[%clk 0:02:44]}  e6 {[%clk 0:03:00]} 7. O-O {[%clk 0:02:43]}  Qc7 {[%clk 0:03:00]} 8. Bf4 {[%clk 0:02:43]}  h6 {[%clk 0:03:00]} 9. Re1 {[%clk 0:02:38]}  Be7 {[%clk 0:03:00]} 10. Qe2 {[%clk 0:02:32]}  b6 {[%clk 0:02:58]} 11. Rad1 {[%clk 0:02:31]}  Bb7 {[%clk 0:02:58]} 12. Rd2 {[%clk 0:02:28]}  a6 {[%clk 0:02:58]} 13. a4 {[%clk 0:02:27]}  O-O {[%clk 0:02:54]} 14. Red1 {[%clk 0:02:25]}  Rfd8 {[%clk 0:02:54]} 15. Bd3 {[%clk 0:02:17]}  Na5 {[%clk 0:02:29]} 16. c4 {[%clk 0:02:04]}  Bc6 {[%clk 0:02:26]} 17. b3 {[%clk 0:02:04]}  Qb7 {[%clk 0:02:25]} 18. Bg3 {[%clk 0:02:00]}  Bxf3 {[%clk 0:02:24]} 19. gxf3 {[%clk 0:02:01]}  Rac8 {[%clk 0:02:10]} 20. f4 {[%clk 0:01:59]}  d5 {[%clk 0:02:00]} 21. cxd5 {[%clk 0:01:57]}  Rxd5 {[%clk 0:01:47]} 22. Be4 {[%clk 0:01:48]}  Rxd2 {[%clk 0:01:46]} 23. Rxd2 {[%clk 0:01:49]}  Qc7 {[%clk 0:01:43]} 24. f5 {[%clk 0:01:49]}  c4 {[%clk 0:01:37]} 25. fxe6 {[%clk 0:01:34]}  fxe6 {[%clk 0:01:38]} 26. Qg4 {[%clk 0:01:34]}  cxb3 {[%clk 0:01:03]} 27. Qxe6+ {[%clk 0:01:33]}  Kf8 {[%clk 0:01:03]} 28. Bd5 {[%clk 0:01:29]}  Bg5 {[%clk 0:00:50]} 29. Qg8+ {[%clk 0:01:28]}  Ke7 {[%clk 0:00:50]} 30. Qf7+ {[%clk 0:01:29]}  Kd8 {[%clk 0:00:48]} 31. Qf8+ {[%clk 0:01:27]}  Kd7 {[%clk 0:00:46]} 32. e6# {[%clk 0:01:28]} 1-0